lending/lending_fUSD_20251015
["ID","MTS","AMOUNT","RATE_DAILY","PERIOD"]
[391354674,1760561313258,-500.0,0.00029889,120]
[391354675,1760561313317,-326.07,0.00029889,120]
[391354676,1760561313375,-607.64,0.00029889,120]
[391354677,1760561313432,-500.0,0.00029889,120]
[391354678,1760561313490,-500.0,0.00029889,120]
[391354679,1760561313551,-500.0,0.00029889,120]
[391354680,1760561313609,-500.0,0.00029889,120]
[391354681,1760561313669,-607.58,0.00029889,120]
[391354682,1760561313726,-500.0,0.00029889,120]
[391354683,1760561313786,-500.0,0.00029889,120]
[391354684,1760561313848,-298.12,0.00029889,120]
[391354685,1760561313908,-500.0,0.00029889,120]
[391354686,1760561313965,-500.0,0.00029889,120]
[391354687,1760561314027,-500.0,0.00029889,120]
[391354688,1760561314088,-534.01111525,0.00029889,120]
[391354689,1760561314145,-500.0,0.00029889,120]
[391354690,1760561314199,-500.0,0.00029889,120]
[391354691,1760561314252,-500.0,0.00029889,120]
[391354692,1760561314307,-500.0,0.00029889,120]
[391354693,1760561314359,-500.0,0.00029889,120]
[391354694,1760561314410,-500.0,0.00029889,120]
[391354695,1760561314620,-500.0,0.00029889,120]
[391354696,1760561314680,-214.92,0.00029889,120]
[391354697,1760561314736,-274.2921117,0.00029889,120]
[391354698,1760561314793,-500.0,0.00029889,120]
[391354699,1760561314849,-500.0,0.00029889,120]
[391354700,1760561314908,-500.0,0.00029889,120]
[391354701,1760561314970,-618.51,0.00029889,120]
[391354702,1760561315033,-500.0,0.00029889,120]
[391354703,1760561315092,-500.0,0.00029889,120]
[391354704,1760561315149,-522.32,0.00029889,120]
[391354705,1760561315204,-500.0,0.00029889,120]
[391354706,1760561315258,-500.0,0.00029889,120]
[391354707,1760561315310,-500.0,0.00029889,120]
[391354708,1760561315361,-500.0,0.00029889,120]
[391354709,1760561315413,-613.99,0.00029889,120]
[391354710,1760561315464,-500.0,0.00029889,120]
[391354711,1760561315518,-500.0,0.00029889,120]
[391354712,1760561315574,-500.0,0.00029889,120]
[391354713,1760561315628,-500.0,0.00029889,120]
[391354714,1760561315684,-500.0,0.00029889,120]
[391354715,1760561315738,-500.0,0.00029889,120]
[391354716,1760561315791,-500.0,0.00029889,120]
[391354717,1760561315841,-646.42,0.00029889,120]
[391354718,1760561315895,-500.0,0.00029889,120]
[391354719,1760561315950,-500.0,0.00029889,120]
[391354720,1760561316010,-500.0,0.00029889,120]
[391354721,1760561316066,-500.0,0.00029889,120]
[391354722,1760561316125,-500.0,0.00029889,120]
[391354723,1760561316184,-500.0,0.00029889,120]
[391354724,1760561316240,-500.0,0.00029889,120]
[391354725,1760561316296,-500.0,0.00029889,120]
[391354726,1760561316349,-580.94,0.00029889,120]
[391354727,1760561316399,-500.0,0.00029889,120]
[391354728,1760561316450,-500.0,0.00029889,120]
[391354729,1760561316509,-500.0,0.00029889,120]
[391354730,1760561316564,-383.25606659,0.00029889,120]
[391354731,1760561316619,-500.0,0.00029889,120]
[391354732,1760561316672,-579.21,0.00029889,120]
[391354733,1760561316726,-500.0,0.00029889,120]
[391354734,1760561316781,-500.0,0.00029889,120]
[391354735,1760561316835,-436.4,0.00029889,120]
[391354736,1760561316889,-320.95868132,0.00029889,120]
[391354737,1760561316946,-486.27616402,0.00029889,120]
[391354738,1760561317002,-500.0,0.00029889,120]
[391354739,1760561317058,-500.0,0.00029889,120]
[391354740,1760561317115,-362.2533733,0.00029889,120]
[391354741,1760561317172,-3000.0,0.00029889,120]
[391354742,1760561317226,-604.0,0.00029889,120]
[391354743,1760561317285,-577.58,0.00029889,120]
[391354744,1760561317337,-577.58,0.00029889,120]
[391354745,1760561317389,-577.58,0.00029889,120]
[391354746,1760561317445,-577.58,0.00029889,120]
[391354747,1760561317502,-577.58,0.00029889,120]
[391354748,1760561317561,-577.58,0.00029889,120]
[391354749,1760561317629,-577.58,0.00029889,120]
[391354750,1760561317694,-577.58,0.00029889,120]
[391354751,1760561317754,-577.58,0.00029889,120]
[391354752,1760561317812,-577.58,0.00029889,120]
[391354753,1760561317871,-577.58,0.00029889,120]
[391354754,1760561317940,-577.58,0.00029889,120]
[391354755,1760561318001,-577.58,0.00029889,120]
[391354756,1760561318061,-577.58,0.00029889,120]
[391354757,1760561318119,-577.58,0.00029889,120]
[391354758,1760561318176,-577.58,0.00029889,120]
[391354759,1760561318234,-577.58,0.00029889,120]
[391354760,1760561318291,-577.58,0.00029889,120]
[391354761,1760561318347,-577.58,0.00029889,120]
[391354762,1760561318404,-577.58,0.00029889,120]
[391354763,1760561318460,-577.58,0.00029889,120]
[391354764,1760561318519,-500.0,0.00029889,120]
[391354765,1760561318576,-500.0,0.00029889,120]
[391354766,1760561318632,-500.0,0.00029889,120]
[391354767,1760561318685,-500.0,0.00029889,120]
[391354768,1760561318756,-576.31,0.00029889,120]
[391354769,1760561318819,-500.0,0.00029889,120]
[391354770,1760561318883,-500.0,0.00029889,120]
[391354771,1760561318945,-500.0,0.00029889,120]
[391354772,1760561319010,-500.0,0.00029889,120]
[391354773,1760561319070,-500.0,0.00029889,120]
[391354774,1760561319132,-500.0,0.00029889,120]
[391354775,1760561319194,-500.0,0.00029889,120]
[391354776,1760561319257,-500.0,0.00029889,120]
[391354777,1760561319319,-500.0,0.00029889,120]
[391354778,1760561319378,-500.0,0.00029889,120]
[391354779,1760561319436,-500.0,0.00029889,120]
[391354780,1760561319498,-500.0,0.00029889,120]
[391354781,1760561319558,-500.0,0.00029889,120]
[391354782,1760561319621,-500.0,0.00029889,120]
[391354783,1760561319680,-500.0,0.00029889,120]
[391354784,1760561320267,-500.0,0.00029889,120]
[391354785,1760561320324,-500.0,0.00029889,120]
[391354786,1760561320378,-500.0,0.00029889,120]
[391354787,1760561320434,-500.0,0.00029889,120]
[391354788,1760561320487,-500.0,0.00029889,120]
[391354789,1760561320540,-500.0,0.00029889,120]
[391354790,1760561320595,-500.0,0.00029889,120]
[391354791,1760561320650,-500.0,0.00029889,120]
[391354792,1760561320708,-461.88355359,0.00029889,120]
[391354793,1760561320767,-1730725.53022594,0.00029889,30]
[391354794,1760561328214,-1087.3328406,0.00025,60]
[391354795,1760561328285,-500.03171203,0.00026,60]
[391354796,1760561328348,-161.06772438,0.00027,60]
[391354797,1760561328425,-150.0,0.00027397,60]
[391354798,1760561328529,-150.0,0.000275,120]
[391354799,1760561328588,-1600.0,0.00027591,120]
[391354800,1760561328647,-1795.64409654,0.00028,120]
[391354801,1760561328705,-400.0,0.00028,120]
[391354802,1760561328763,-150.0,0.00028,120]
[391354803,1760561328820,-150.00000199,0.00028,60]
[391354804,1760561328877,-150.0,0.000285,120]
[391354805,1760561328936,-2075.23522326,0.0002876,120]
[391354806,1760561328995,-3482.62361325,0.0002876,60]
[391354807,1760561329054,-582.54046185,0.00028767,120]
[391354808,1760561329112,-2733.08,0.00028767,120]
[391354809,1760561329172,-2733.08,0.00028794,120]
[391354810,1760561329229,-2733.08,0.00028821,120]
[391354811,1760561329288,-150.0,0.00028845,120]
[391354812,1760561329348,-2733.08,0.00028849,120]
[391354813,1760561329406,-2733.08,0.00028876,120]
[391354814,1760561329464,-150.0,0.000289,120]
[391354815,1760561329524,-2733.08,0.00028904,120]
[391354816,1760561329582,-2733.08,0.00028931,120]
[391354817,1760561329642,-2733.08,0.00028958,120]
[391354818,1760561329702,-2733.08,0.00028986,120]
[391354819,1760561329758,-150.0,0.00028992,120]
[391354820,1760561329811,-600.0,0.00029,120]
[391354821,1760561329866,-620.0,0.00029,60]
[391354822,1760561329920,-150.0,0.00029,120]
[391354823,1760561329983,-2733.08,0.00029013,120]
[391354824,1760561330038,-2733.08,0.00029041,120]
[391354825,1760561330093,-2733.08,0.00029068,120]
[391354826,1760561330145,-2733.08,0.00029095,120]
[391354827,1760561330198,-2733.08,0.00029123,120]
[391354828,1760561330254,-2733.08,0.0002915,120]
[391354829,1760561330306,-150.0,0.0002916,120]
[391354830,1760561330355,-2733.08,0.00029178,120]
[391354831,1760561330403,-2733.08,0.00029205,120]
[391354832,1760561330450,-2733.08,0.00029232,120]
[391354833,1760561330499,-2733.08,0.0002926,120]
[391354834,1760561330546,-2733.08,0.00029287,120]
[391354835,1760561330593,-2733.08,0.00029315,120]
[391354836,1760561330641,-2733.08,0.00029342,120]
[391354837,1760561330688,-2733.08,0.00029369,120]
[391354838,1760561330739,-2733.11459919,0.00029397,120]
[391354839,1760561330791,-150.0,0.000295,120]
[391354840,1760561330849,-150.0,0.00029608,120]
[391354841,1760561330905,-150.0,0.0002976,120]
[391354842,1760561330963,-150.0,0.00029775,120]
[391354843,1760561331234,-66166.83104444,0.000298,120]
[391354844,1760561331290,-200.0,0.00029889,120]
[391354845,1760561333626,-150.0,0.000299,120]
[391354846,1760561333714,-208.0,0.0003,120]
[391354847,1760561333786,-1106.27721669,0.0003,120]
[391354848,1760561333857,-278.88790613,0.0003,120]
[391354849,1760561333942,-623.00085162,0.0003,120]
[391354850,1760561334016,-1408.51503901,0.0003,120]
[391354851,1760561334098,-293.14560245,0.0003,120]
[391354852,1760561334179,-2711.60219731,0.0003,120]
[391354853,1760561334250,-1807.52473443,0.0003,120]
[391354854,1760561334319,-2307.39845292,0.0003,120]
[391354855,1760561334387,-200.0,0.0003,120]
[391354856,1760561334454,-615.45234305,0.0003,120]
[391354857,1760561334522,-2783.32536416,0.0003,120]
[391354858,1760561334590,-1325.71911368,0.0003,120]
[391354859,1760561334656,-329.24095962,0.0003,120]
[391354860,1760561334722,-3234.42777441,0.0003,120]
[391354861,1760561334789,-600.0,0.0003,120]
[391354862,1760561334853,-600.0,0.0003,120]
[391354863,1760561334916,-544.0,0.0003,120]
[391354864,1760561334984,-400.0,0.0003,120]
[391354865,1760561335049,-1806.7880535,0.0003,120]
[391354866,1760561335112,-773.92644464,0.0003,120]
[391354867,1760561335172,-477.00527194,0.0003,60]
[391354868,1760561335232,-200.0,0.0003,120]
[391354869,1760561335288,-400.0,0.0003,120]
[391354870,1760561335342,-150.0,0.0003,60]
[391354871,1760561335397,-700.0,0.0003,120]
[391354872,1760561335453,-1458.79344395,0.0003,120]
[391354873,1760561335512,-2035.99053762,0.0003,60]
[391354874,1760561335568,-703.48985633,0.0003,120]
[391354875,1760561335625,-10179.969806,0.0003,120]
[391354876,1760561335682,-300.0,0.0003,120]
[391354877,1760561335743,-1000.0,0.0003,120]
[391354878,1760561335803,-150.0,0.0003,120]
[391354879,1760561335862,-1000.0,0.0003,120]
[391354880,1760561335923,-500.0,0.000301,120]
[391354881,1760561335987,-861.14160799,0.000301,120]
[391354882,1760561336045,-1366.62321735,0.0003013,120]
[391354883,1760561336104,-1800.0,0.0003013,120]
[391354884,1760561336162,-648.58855363,0.0003013,120]
[391354885,1760561336224,-1340.10610517,0.0003013,120]
[391354886,1760561336291,-1181.40779373,0.0003013,120]
[391354887,1760561336356,-157.33918903,0.0003013,120]
[391354888,1760561336415,-199.71991829,0.0003013,120]
[391354889,1760561336472,-212.5922157,0.00030136,120]
[391354890,1760561336537,-500.0,0.00030136,120]
[391354891,1760561336593,-1000.0,0.00030136,60]
[391354892,1760561336648,-1934.0,0.00030137,120]
[391354893,1760561336704,-1500.88679694,0.00030137,120]
[391354894,1760561336760,-607.15128928,0.00030162,120]
[391354895,1760561336814,-200.0,0.00030162,120]
[391354896,1760561336870,-160.0,0.000302,60]
[391354897,1760561336926,-2269.14579749,0.00030232,120]
[391354898,1760561336985,-500.0,0.00030236,120]
[391354899,1760561337040,-216.0,0.00030237,60]
[391354900,1760561337096,-1006.65034683,0.0003024,60]
[391354901,1760561337153,-266.56093,0.00030241,120]
[391354902,1760561337211,-694.0,0.00030245,60]
[391354903,1760561337269,-6000.0,0.0003025,60]
[391354904,1760561337327,-156.90251127,0.0003026,120]
[391354905,1760561337380,-1000.0,0.0003027,60]
[391354906,1760561337436,-200.0,0.00030271,120]
[391354907,1760561337494,-543.39375248,0.00030284,120]
[391354908,1760561337552,-152.81,0.00030375,60]
[391354909,1760561337608,-565.4,0.00030375,60]
[391354910,1760561337663,-818.0011968,0.00030381,60]
[391354911,1760561337722,-863.04329261,0.0003039,120]
[391354912,1760561337781,-500.0,0.00030398,120]
[391354913,1760561337837,-500.0,0.00030399,120]
[391354914,1760561337892,-4501.41517212,0.00030399,60]
[391354915,1760561337947,-1191.91,0.00030399,60]
[391354916,1760561338004,-1500.0,0.00030401,60]
[391354917,1760561338061,-2592.0,0.00030405,60]
[391354918,1760561338122,-1955.98,0.00030408,60]
[391354919,1760561338181,-489.0,0.00030408,60]
[391354920,1760561338239,-244.5,0.00030408,60]
[391354921,1760561338293,-1589.23,0.00030409,60]
[391354922,1760561338344,-1589.23,0.00030409,60]
[391354923,1760561338396,-489.0,0.00030409,60]
[391354924,1760561338447,-244.5,0.00030409,60]
[391354925,1760561338496,-611.24,0.00030409,60]
[391354926,1760561338547,-305.62,0.00030409,60]
[391354927,1760561338596,-1000.0,0.0003041,60]
[391354928,1760561338645,-1000.0,0.00030413,60]
[391354929,1760561338694,-2000.0,0.00030422,60]
[391354930,1760561338742,-2000.0,0.00030422,60]
[391354931,1760561338790,-2000.0,0.00030422,60]
[391354932,1760561338838,-2398.48,0.00030422,60]
[391354933,1760561338888,-162.0,0.0003044,60]
[391354934,1760561338942,-5440.1653142,0.00030448,120]
[391354935,1760561338998,-379.0,0.0003045,60]
[391354936,1760561339053,-1500.0,0.00030455,60]
[391354937,1760561339107,-1000.73,0.00030496,60]
[391354938,1760561339543,-1000.0,0.00030496,60]
[391354939,1760561339598,-150.0,0.000305,120]
[391354940,1760561339650,-656.80254215,0.00030684,60]
[391354941,1760561339700,-1527.90687187,0.00030888,60]
[391354942,1760561339754,-150.0,0.000309,120]
[391354943,1760561339804,-152.0,0.00031,120]
[391354944,1760561339853,-190.36102165,0.00031,120]
[391354945,1760561339903,-200.0,0.00031,120]
[391354946,1760561339959,-600.0,0.00031,120]
[391354947,1760561340017,-185.0,0.00031,120]
[391354948,1760561340075,-150.0,0.00031094,120]
[391354949,1760561340134,-150.0,0.00031118,120]
[391354950,1760561340200,-150.0,0.00031363,120]
[391354951,1760561340258,-1200.0,0.000314,120]
[391354952,1760561340316,-150.0,0.0003148,120]
[391354953,1760561340374,-200.0,0.000315,120]
[391354954,1760561340428,-150.0,0.00031504,120]
[391354955,1760561340481,-500.0,0.00031506,120]
[391354956,1760561340535,-300.0,0.00031507,120]
[391354957,1760561340589,-185.0,0.000317,120]
[391354958,1760561340640,-150.0,0.00031743,120]
[391354959,1760561340691,-150.0,0.00031745,120]
[391354960,1760561340742,-150.0,0.00031897,120]
[391354961,1760561340793,-150.0,0.000319,120]
[391354962,1760561340847,-150.0,0.00031901,120]
[391354963,1760561340900,-1444.0,0.00031945,120]
[391354964,1760561340952,-150.0,0.00031981,120]
[391354965,1760561341010,-152.0,0.00032,120]
[391354966,1760561341065,-2471.15008245,0.00032,120]
[391354967,1760561341120,-2734.67867795,0.00032,120]
[391354968,1760561341176,-200.0,0.00032,120]
[391354969,1760561341228,-400.0,0.00032,120]
[391354970,1760561341283,-150.0,0.00032065,120]
[391354971,1760561341342,-150.0,0.000322,120]
[391354972,1760561341401,-150.0,0.00032327,120]
[391354973,1760561341458,-185.0,0.000324,120]
[391354974,1760561341514,-200.0,0.000325,120]
[391354975,1760561341572,-200.0,0.000325,120]
[391354976,1760561341632,-150.0,0.00032517,120]
[391354977,1760561341688,-150.0,0.00032548,120]
[391354978,1760561341742,-206.0,0.000328,120]
[391354979,1760561341793,-1939.55887762,0.000328,120]
[391354980,1760561341846,-150.0,0.00032855,120]
[391354981,1760561341905,-500.0,0.00032876,120]
[391354982,1760561341961,-1549.86,0.00032876,120]
[391354983,1760561342015,-500.0,0.00032876,120]
[391354984,1760561342068,-500.0,0.00032876,120]
[391354985,1760561342118,-585.51982949,0.00032876,120]
[391354986,1760561342167,-150.0,0.000329,120]
[391354987,1760561342215,-150.0,0.00032958,120]
[391354988,1760561342263,-150.0,0.00032975,120]
[391354989,1760561342313,-152.0,0.00033,120]
[391354990,1760561342370,-200.0,0.00033,120]
[391354991,1760561342426,-600.0,0.00033,120]
[391354992,1760561342483,-2285.60993466,0.00033,120]
[391354993,1760561342549,-185.0,0.000331,120]
[391354994,1760561342606,-150.0,0.00033157,120]
[391354995,1760561342660,-4150.1,0.00033196,120]
[391354996,1760561342711,-200.0,0.000335,120]
[391354997,1760561342761,-1549.86,0.00033561,120]
[391354998,1760561342812,-150.0,0.00033621,120]
[391354999,1760561342864,-150.0,0.000337,120]
[391355000,1760561342916,-185.0,0.000337,120]
[391355001,1760561342969,-150.0,0.00033753,120]
[391355002,1760561343027,-150.0,0.00033843,120]
[391355003,1760561343086,-152.0,0.000339,120]
[391355004,1760561343146,-153.02532204,0.00033939,60]
[391355005,1760561343204,-150.0,0.00033957,120]
[391355006,1760561343260,-200.0,0.00034,120]
[391355007,1760561343317,-400.0,0.00034,120]
[391355008,1760561343377,-500.0,0.00034246,120]
[391355009,1760561343439,-1549.86,0.00034246,120]
[391355010,1760561343506,-1531.0,0.00034247,120]
[391355011,1760561343571,-150.0,0.00034346,120]
[391355012,1760561343632,-1200.0,0.000344,120]
[391355013,1760561343692,-185.0,0.000344,120]
[391355014,1760561343754,-150.0,0.00034437,120]
[391355015,1760561343813,-200.0,0.000345,120]
[391355016,1760561343875,-150.0,0.00034533,120]
[391355017,1760561343934,-150.0,0.00034713,120]
[391355018,1760561343997,-150.0,0.00034733,120]
[391355019,1760561344058,-150.0,0.00034798,120]
[391355020,1760561344118,-2046.71441191,0.0003485,60]
[391355021,1760561344180,-150.0,0.00034863,120]
[391355022,1760561344243,-152.0,0.000349,120]
[391355023,1760561344303,-235.50500133,0.000349,120]
[391355024,1760561344363,-1549.86,0.00034931,120]
[391355025,1760561344421,-884.64512089,0.0003495,120]
[391355026,1760561344479,-2731.14475648,0.00035,120]
[391355027,1760561344537,-200.0,0.00035,120]
[391355028,1760561344598,-400.0,0.00035,120]
[391355029,1760561344659,-200.0,0.00035,120]
[391355030,1760561344718,-219.0,0.00035,120]
[391355031,1760561344777,-2666.23586312,0.00035,60]
[391355032,1760561344834,-5941.18,0.00035,120]
[391355033,1760561344906,-2305.8,0.00035,120]
[391355034,1760561344970,-1799.27,0.00035,120]
[391355035,1760561345035,-4356.76,0.00035,120]
[391355036,1760561345101,-1215.09,0.00035,120]
[391355037,1760561345167,-4253.07,0.00035,120]
[391355038,1760561345227,-978.21,0.00035,120]
[391355039,1760561345286,-5531.94,0.00035,120]
[391355040,1760561345340,-573.53,0.00035,120]
[391355041,1760561345909,-531.95,0.00035,120]
[391355042,1760561345975,-188.16,0.00035,120]
[391355043,1760561346038,-2700.0,0.00035,120]
[391355044,1760561346092,-185.0,0.000351,120]
[391355045,1760561346146,-150.0,0.00035129,120]
[391355046,1760561346200,-150.0,0.00035155,120]
[391355047,1760561346254,-150.0,0.00035172,120]
[391355048,1760561346312,-150.0,0.00035176,120]
[391355049,1760561346367,-150.0,0.00035197,120]
[391355050,1760561346420,-150.0,0.00035214,120]
[391355051,1760561346473,-150.0,0.00035433,120]
[391355052,1760561346532,-232.46088418,0.000355,120]
[391355053,1760561346586,-200.0,0.000355,120]
[391355054,1760561346640,-501.34554492,0.00035616,120]
[391355055,1760561346694,-1549.86,0.00035616,120]
[391355056,1760561346745,-150.0,0.00035689,120]
[391355057,1760561346797,-150.0,0.00035791,120]
[391355058,1760561346851,-185.0,0.000358,120]
[391355059,1760561346911,-152.0,0.000359,120]
[391355060,1760561346971,-150.0,0.00035919,120]
[391355061,1760561347036,-150.0,0.0003593,120]
[391355062,1760561347096,-200.0,0.00036,120]
[391355063,1760561347156,-400.0,0.00036,120]
[391355064,1760561347213,-177.66904773,0.00036,120]
[391355065,1760561347275,-1549.86,0.00036301,120]
[391355066,1760561347333,-3228977.5310993,0.00036354,120]
[391355067,1760561347394,-150.0,0.00036454,120]
[391355068,1760561347453,-1311.02,0.000365,60]
[391355069,1760561347513,-185.0,0.000365,120]
[391355070,1760561347573,-566.8310151,0.000367,120]
[391355071,1760561347631,-150.0,0.00036858,120]
[391355072,1760561347690,-150.0,0.00036882,120]
[391355073,1760561347747,-152.0,0.000369,120]
[391355074,1760561347804,-445.0,0.00036986,60]
[391355075,1760561347863,-1549.86,0.00036986,120]
[391355076,1760561347921,-200.0,0.00037,120]
[391355077,1760561347990,-400.0,0.00037,120]
[391355078,1760561348061,-1013.87242389,0.00037,60]
[391355079,1760561348118,-21822.0,0.00037,120]
[391355080,1760561348176,-988.310501,0.00037,120]
[391355081,1760561348237,-2691.0,0.00037,120]
[391355082,1760561348304,-1017.47124738,0.00037,120]
[391355083,1760561348364,-5179.0,0.00037,117]
[391355084,1760561348424,-150.0,0.00037041,120]
[391355085,1760561348485,-150.0,0.00037188,120]
[391355086,1760561348553,-185.0,0.000372,120]
[391355087,1760561348616,-191.1089125,0.000372,120]
[391355088,1760561348676,-191.10891246,0.000372,120]
[391355089,1760561348735,-191.10891246,0.000372,120]
[391355090,1760561348796,-191.10891246,0.000372,120]
[391355091,1760561348855,-191.10891246,0.000372,120]
[391355092,1760561348916,-3121.16140561,0.00037212,120]
[391355093,1760561348981,-1444.0,0.0003737,120]
[391355094,1760561349040,-150.0,0.00037386,120]
[391355095,1760561349100,-1200.0,0.000374,120]
[391355096,1760561349159,-200.0,0.000375,120]
[391355097,1760561349218,-230.47653912,0.000375,120]
[391355098,1760561349277,-100053.27030415,0.000375,120]
[391355099,1760561349335,-150.0,0.00037612,120]
[391355100,1760561349397,-150.0,0.00037617,120]
[391355101,1760561349458,-1549.86,0.00037671,120]
[391355102,1760561349522,-200.0,0.00037703,120]
[391355103,1760561349584,-150.0,0.00037739,120]
[391355104,1760561349641,-709.89,0.00037808,60]
[391355105,1760561349699,-709.9,0.00037839,80]
[391355106,1760561349756,-200.0,0.00037839,120]
[391355107,1760561349818,-555.0,0.00037869,120]
[391355108,1760561349874,-709.9,0.00037869,100]
[391355109,1760561349933,-152.0,0.000379,120]
[391355110,1760561349994,-185.0,0.000379,120]
[391355111,1760561350052,-709.9,0.000379,120]
[391355112,1760561350110,-776.83462456,0.00037999,120]
[391355113,1760561350167,-3000.0,0.00038,120]
[391355114,1760561350223,-272.83650631,0.00038,120]
[391355115,1760561350279,-1864.51646284,0.00038,120]
[391355116,1760561350334,-200.0,0.00038,120]
[391355117,1760561350389,-730.818333,0.00038,120]
[391355118,1760561350445,-400.0,0.00038,120]
[391355119,1760561350500,-500.0,0.00038,120]
[391355120,1760561350556,-500.0,0.00038,120]
[391355121,1760561350612,-615.0,0.00038,120]
[391355122,1760561350666,-500.0,0.00038,120]
[391355123,1760561350723,-500.0,0.00038,120]
[391355124,1760561350780,-1000.0,0.00038,60]
[391355125,1760561350838,-4150.1,0.00038177,120]
[391355126,1760561350897,-150.0,0.0003831,120]
[391355127,1760561350957,-1549.86,0.00038356,120]
[391355128,1760561351018,-150.0,0.00038447,120]
[391355129,1760561351074,-2790.42256935,0.000386,120]
[391355130,1760561351130,-185.0,0.000386,120]
[391355131,1760561351185,-6515.9,0.00038657,120]
[391355132,1760561351240,-6515.9,0.00038657,120]
[391355133,1760561351296,-6515.9,0.00038657,120]
[391355134,1760561351353,-6515.9,0.00038657,120]
[391355135,1760561351409,-6515.9,0.00038657,120]
[391355136,1760561351466,-6515.9,0.00038657,120]
[391355137,1760561351522,-6515.9,0.00038657,120]
[391355138,1760561351575,-6515.9,0.00038657,120]
[391355139,1760561351628,-6515.9,0.00038657,120]
[391355140,1760561351681,-6515.9,0.00038657,120]
[391355141,1760561351734,-6515.9,0.00038657,120]
[391355142,1760561351787,-6515.9,0.00038657,120]
[391355143,1760561351839,-6515.9,0.00038657,120]
[391355144,1760561351892,-6515.9,0.00038657,120]
[391355145,1760561352263,-6515.9,0.00038657,120]
[391355146,1760561352321,-6515.9,0.00038657,120]
[391355147,1760561352379,-6515.9,0.00038657,120]
[391355148,1760561352440,-6515.9,0.00038657,120]
[391355149,1760561352499,-6515.9,0.00038657,120]
[391355150,1760561352558,-6515.9,0.00038657,120]
[391355151,1760561352612,-6515.9,0.00038657,120]
[391355152,1760561352667,-6515.9,0.00038657,120]
[391355153,1760561352719,-6515.9,0.00038657,120]
[391355154,1760561352773,-6516.10669083,0.00038657,120]
[391355155,1760561352825,-152.0,0.000388,120]
[391355156,1760561352877,-1608.18600679,0.000388,120]
[391355157,1760561352931,-301.65996786,0.000389,120]
[391355158,1760561352992,-150.0,0.0003894,120]
[391355159,1760561353048,-1548.7176209,0.0003899,120]
[391355160,1760561353106,-2099.35780445,0.00039,120]
[391355161,1760561353166,-1943.34562707,0.00039,120]
[391355162,1760561353224,-200.0,0.00039,120]
[391355163,1760561353284,-300.0,0.00039,120]
[391355164,1760561353346,-500.0,0.00039,120]
[391355165,1760561353404,-400.0,0.00039,120]
[391355166,1760561353460,-2600.0,0.00039,120]
[391355167,1760561353516,-200.11139709,0.00039,120]
[391355168,1760561353574,-21822.0,0.00039,120]
[391355169,1760561353634,-1500.13999992,0.00039,120]
[391355170,1760561353692,-302.7,0.00039,120]
[391355171,1760561353752,-2691.0,0.00039,120]
[391355172,1760561353810,-42893.80709239,0.00039,120]
[391355173,1760561353866,-1549.86,0.00039041,120]